[Event "44th Chess Olympiad Women 2022"]
[Site "Chennai"]
[Date "2022.07.30"]
[Round "2.13"]
[White "Vega Gutierrez, Sabrina"]
[Black "Foudzi, Siti Zulaikha"]
[Result "1-0"]
[WhiteElo "2366"]
[BlackElo "2188"]
[Annotator "TA"]
[PlyCount "97"]
[EventDate "2022.??.??"]
[TimeControl "60"]

{[%evp 10,97,37,29,73,19,56,46,45,29,52,65,62,70,61,50,78,83,94,89,163,114,118,
114,116,107,98,110,105,34,52,54,49,25,13,22,41,37,36,-31,-25,-28,-33,-30,27,25,
25,-26,-8,-9,-22,-26,0,0,0,0,0,0,0,0,0,3,98,99,105,8,169,167,318,341,460,492,
431,301,420,401,519,510,656,653,685,677,999,957,5695,5589,2822,3368,5089,1286]
} 1. e4 {[%emt 0:00:04]} d6 {[%emt 0:00:04]} 2. d4 {[%emt 0:00:08]} Nf6 {
[%emt 0:00:06]} 3. Nc3 {[%emt 0:00:06]} Nbd7 {[%emt 0:00:03]} 4. Nf3 {[%emt 0:
00:00]} e5 {[%emt 0:00:13]} 5. Bc4 {[%emt 0:00:12]} Be7 {[%emt 0:00:05]} 6. a4
{[%emt 0:00:43]} a5 {[%emt 0:00:21] C41: Philidor Defence.} 7. O-O {[%emt 0:00:
00]} (7. Ng5 $16 d5 8. exd5) 7... h6 {[%emt 0:00:20]} 8. Re1 {[%emt 0:00:42]}
c6 {[%emt 0:00:05] White is slightly better.} 9. Ba2 {[%emt 0:06:43]} Qc7 {
[%emt 0:00:10]} 10. Nh4 {[%emt 0:02:18]} g6 {[%emt 0:01:14] Inhibits Nf5.} 11.
h3 {[%emt 0:02:49]} Nf8 {[%emt 0:00:31] [#]} 12. Qd3 $146 {[%emt 0:12:41]} ({
Predecessor:} 12. Be3 Ne6 13. d5 Ng7 14. Nf3 g5 15. Nd2 Ngh5 16. Bc4 Nf4 17.
Bxf4 gxf4 18. Bf1 {0-1 (41) Priyanka,K (2215)-Krishna,C (2466) Guwahati 2022})
12... Nh5 {[%emt 0:02:13]} 13. Nf3 {[%emt 0:00:32]} g5 {[%emt 0:00:36]} 14. Qc4
{[%emt 0:01:04]} Rh7 {[%emt 0:14:36]} (14... Bd8 $16 {was necessary.}) 15. Nd5
{[%emt 0:06:30]} (15. dxe5 $1 $18 {aiming for Nd5.} dxe5 16. Nd5) 15... Qd8 $16
{[%emt 0:00:31]} 16. Nxe7 {[%emt 0:00:39] White is much more active. The black
rooks are badly placed.} (16. dxe5 cxd5 17. exd5 Ng6 $11) 16... Qxe7 {[%emt 0:
00:00]} 17. dxe5 {[%emt 0:01:58]} dxe5 {[%emt 0:00:14]} 18. Qc3 {[%emt 0:01:49]
} f6 {[%emt 0:03:18]} 19. Nh2 {[%emt 0:02:57]} (19. Be3 $16) 19... Nf4 {
[%emt 0:05:18]} 20. Be3 {[%emt 0:00:55]} Be6 {[%emt 0:03:20]} 21. Nf1 {[%emt 0:
00:00]} (21. Bc5 $5 {[%cal Rc5e7]} Qf7 22. Bxe6 N8xe6 23. Rad1 $14) 21... Bxa2
{[%emt 0:06:03]} 22. Rxa2 {[%emt 0:00:07]} Qe6 {[%emt 0:00:26]} 23. Ra3 {
[%emt 0:05:47]} N8g6 {[%emt 0:02:03]} 24. Qb3 {[%emt 0:04:42]} ({White should
try} 24. Nd2 $14) 24... Qxb3 $15 {[%emt 0:02:06]} 25. Rxb3 {[%emt 0:00:06]} Nh4
{[%emt 0:06:02]} 26. Bxf4 {[%emt 0:00:23]} gxf4 {[%emt 0:00:49]} ({Black
should play} 26... exf4 27. Rd1 Rd8 28. Rxd8+ Kxd8) 27. g3 {[%emt 0:00:07]} Ng6
{[%emt 0:01:44]} 28. Nd2 {[%emt 0:00:06]} ({Better is} 28. Rd1) 28... Rd7 {
[%emt 0:04:11]} 29. Nc4 {[%emt 0:04:03]} Rd4 {[%emt 0:00:22]} 30. Nb6 {[%emt 0:
00:00]} Rad8 {[%emt 0:00:42]} 31. c3 {[%emt 0:00:17]} Rd3 {[%emt 0:01:19]} 32.
Kg2 {[%emt 0:00:34]} fxg3 {[%emt 0:01:54]} 33. fxg3 {[%emt 0:00:07]} Rd2+ {
[%emt 0:00:24]} 34. Kf3 {[%emt 0:00:53] Black should prevent Nc4.} Rh2 {
[%emt 0:06:06]} 35. Nc4 {[%emt 0:04:21][%csl Ya5,Yb7]} Rd7 {[%emt 0:03:45]} (
35... h5 $1 $11) 36. Re2 $36 {[%emt 0:08:41] Black is under strong pressure.}
Rxh3 {[%emt 0:07:33] [#]} 37. Kg2 {[%emt 0:01:04]} (37. Rxb7 $3 $16 Rxb7 38.
Nd6+ Ke7 39. Nxb7) 37... Rh5 $2 {[%emt 0:00:23] Loses the game.} (37... Rd3 $1
$11 38. Kxh3 (38. Nd6+ Kd7 $11) 38... Nf4+ 39. Kh4 Nxe2) 38. Rxb7 $18 {[%emt 0:
00:54]} (38. Nxa5 $6 Rg5 $14) 38... Rd1 {[%emt 0:00:00]} (38... Rxb7 {might
work better.} 39. Nd6+ Kd7 40. Nxb7 Rg5) 39. Rd2 {[%emt 0:03:31]} ({Not} 39.
Nxa5 Rg5 $16) ({Weaker is} 39. Rf2 Rhh1 $16) 39... Rxd2+ {[%emt 0:02:47]} 40.
Nxd2 {[%emt 0:00:08] Endgame KRN-KRN} Rg5 {[%emt 0:00:25]} 41. Nc4 {[%emt 0:32:
06]} Nf4+ {[%emt 0:33:39]} 42. Kf3 {[%emt 0:01:03]} Nd3 {[%emt 0:00:52]} 43. b4
{[%emt 0:00:00] Prevents Nc5. White is clearly winning.} axb4 {[%emt 0:00:00]}
44. cxb4 {[%emt 0:00:00] Hoping for a5.} Ne1+ {[%emt 0:00:00]} 45. Ke2 {
[%emt 0:00:00] Black must now prevent a5.} Nc2 {[%emt 0:00:00]} 46. a5 {
[%emt 0:00:00][%cal Ya4a5,Ya5a6] Strongly threatening a6.} Nd4+ {[%emt 0:00:00]
} 47. Kf2 {[%emt 0:00:00]} Nb5 {[%emt 0:00:00]} 48. a6 {[%emt 0:00:00]} Rh5 {
[%emt 0:00:00] [#]} 49. Kg2 {[%emt 0:00:00] Weighted Error Value: White=0.19 
(very precise) /Black=0.38} (49. Rxb5 $142 $1 cxb5 50. a7 (50. Nd6+ Kd7 $17)
50... bxc4 51. a8=Q+ Kf7 52. Qd5+ Kg7 53. Qd7+ Kf8 54. Qc8+ Kg7 55. Qxc4) 1-0

[Event "44th Chess Olympiad Women 2022"]
[Site "Chennai"]
[Date "2022.07.30"]
[Round "2.14"]
[White "Forgas Moreno, Yaniela"]
[Black "Mihailova, Alina"]
[Result "1-0"]
[WhiteElo "2343"]
[BlackElo "1926"]
[Annotator "TA"]
[PlyCount "67"]
[EventDate "2022.??.??"]
[TimeControl "60"]

{[%evp 13,67,0,7,-22,14,0,7,13,16,2,21,16,8,-16,15,-2,95,87,108,42,85,65,56,59,
119,136,140,144,164,170,296,294,287,277,377,352,369,341,438,390,558,562,552,
543,742,724,765,732,963,939,1149,1111,1806,1759,1500,1212]} 1. d3 {[%emt 0:00:
00]} d5 {[%emt 0:00:49]} 2. f4 {[%emt 0:00:10]} c5 {[%emt 0:00:54]} 3. Nf3 {
[%emt 0:00:17]} Nc6 {[%emt 0:00:34]} 4. g3 {[%emt 0:00:31]} g6 {[%emt 0:00:18]}
5. Bg2 {[%emt 0:00:36]} Bg7 {[%emt 0:00:09]} 6. O-O {[%emt 0:01:29]} Nf6 {
[%emt 0:00:18][%cal Yg8f6,Yf6d7,Yd7c5]} 7. Nc3 {[%emt 0:05:02]} O-O {[%emt 0:
15:07]} 8. Bd2 {[%emt 0:09:15][%cal Yc1d2,Yd2e1,Ye1f2] A03: Bird's Opening
with 1...d5.} Rb8 {[%emt 0:03:01]} 9. e4 {[%emt 0:02:31] [#]} d4 $146 {[%emt 0:
16:13]} ({Predecessor:} 9... dxe4 10. dxe4 e5 11. h3 Nh5 12. Kh2 exf4 13. gxf4
f5 14. e5 Bh6 15. Ne2 Be6 {1-0 (37) Bolduc,S (2159)-Dumouchel,A (1863)
Trois-Rivieres 2018}) 10. Ne2 {[%emt 0:08:34] The position is equal.} b5 {
[%emt 0:04:52]} 11. h3 {[%emt 0:05:51]} Nd7 {[%emt 0:12:31]} 12. g4 {[%emt 0:
00:00]} c4 {[%emt 0:21:36]} 13. Be1 {[%emt 0:18:09]} Nc5 {[%emt 0:02:45]} 14.
Bf2 {[%emt 0:09:42]} (14. e5 {seems wilder.} f6 15. Nfxd4 Nxd4 16. Nxd4 Qxd4+
17. Bf2) 14... cxd3 {[%emt 0:10:37]} (14... Bb7 $11) 15. cxd3 $16 {[%emt 0:00:
00] And now Qc2 would win.} Nb4 {[%emt 0:02:12] [#] Inhibits Qc2.} 16. Nc1 {
[%emt 0:03:01]} (16. Ne1 $1 $16) 16... a5 {[%emt 0:02:26]} 17. a3 {[%emt 0:00:
00]} Nba6 {[%emt 0:02:20]} 18. Ne2 {[%emt 0:01:45][%cal Yc1e2,Ye2d4,Yd4c6,
Yc6e5]} Rb7 {[%emt 0:01:31] Black is on the road to losing.} ({Black should
play} 18... b4 $1 $14) 19. Nexd4 {[%emt 0:06:00]} ({Worse is} 19. Bxd4 Bxd4+
20. Nexd4 Rd7 $15) 19... Rd7 {[%emt 0:00:25][%cal Rg7d4]} 20. Nc6 $36 {[%emt 0:
07:07] White is on the roll.} ({Inferior is} 20. Nxb5 Nxd3 21. Qd2 Nac5 22.
Bxc5 Nxc5 $15) 20... Qc7 {[%emt 0:00:21] [#]} 21. Nce5 {[%emt 0:04:52] Black
must now prevent Rc1.} Rd6 {[%emt 0:01:01]} (21... Rdd8 $142) 22. Rc1 $18 {
[%emt 0:00:41] Strongly threatening Bxc5.} f6 {[%emt 0:00:00]} 23. b4 {[%emt 0:
00:34]} axb4 {[%emt 0:00:07]} 24. axb4 {[%emt 0:00:11]} fxe5 {[%emt 0:00:26]}
25. bxc5 {[%emt 0:00:45]} Rc6 {[%emt 0:01:12]} 26. fxe5 {[%emt 0:01:16]} Bxe5 {
[%emt 0:00:42]} (26... Be6 $142 27. Nd4 Rxf2) 27. Nxe5 {[%emt 0:00:37] White
is clearly winning.} Qxe5 {[%emt 0:00:07]} 28. d4 {[%emt 0:00:15][%cal Yd3d4,
Yd4d5]} Qb8 {[%emt 0:00:58]} 29. Qb3+ {[%emt 0:00:47]} Be6 {[%emt 0:00:31]} 30.
d5 {[%emt 0:00:31]} Bf7 {[%emt 0:00:00]} 31. Bg3 {[%emt 0:00:50]} Qc8 {[%emt 0:
00:46] [#]} 32. Rxf7 $1 {[%emt 0:00:00]} Nxc5 {[%emt 0:00:38]} (32... Rxf7 33.
dxc6) 33. Rxf8+ {[%emt 0:00:00]} Qxf8 {[%emt 0:00:29]} 34. Qe3 {[%emt 0:00:21]
Weighted Error Value: White=0.09 (flawless) /Black=0.44} 1-0

[Event "44th Chess Olympiad Women 2022"]
[Site "Chennai"]
[Date "2022.07.30"]
[Round "2.14"]
[White "Miranda Llanes, Yerisbel"]
[Black "Gitu, Paula-Alexandra"]
[Result "1-0"]
[WhiteElo "2347"]
[BlackElo "2109"]
[Annotator "TA"]
[PlyCount "113"]
[EventDate "2022.??.??"]
[TimeControl "60"]

{[%evp 13,113,31,35,18,33,34,52,36,48,36,47,18,37,33,58,47,48,43,33,15,28,22,
26,24,36,36,33,41,73,43,26,32,105,108,142,125,161,146,161,166,171,169,168,158,
237,239,252,267,378,191,185,162,162,139,123,122,132,49,135,118,329,313,385,366,
330,270,268,230,318,219,212,201,187,147,150,101,102,90,129,115,117,0,288,285,
372,363,546,544,857,745,1462,1448,854,1334,29966,29953,7059,3016,29988,29984,
29989,29990]} 1. d4 {[%emt 0:00:16]} d6 {[%emt 0:00:04]} 2. Nf3 {[%emt 0:00:12]
} Bg4 {[%emt 0:00:55]} 3. e3 {[%emt 0:00:17]} Nd7 {[%emt 0:01:03]} 4. c4 {
[%emt 0:01:14]} c6 {[%emt 0:00:30]} 5. Be2 {[%emt 0:01:32]} Ngf6 {[%emt 0:00:
00]} 6. Nc3 {[%emt 0:00:32]} e5 {[%emt 0:00:52]} 7. O-O {[%emt 0:12:03]} Be7 {
[%emt 0:01:28]} 8. e4 {[%emt 0:00:46] A53: Old Indian Defence without Nf3.} O-O
{[%emt 0:01:26]} 9. Be3 {[%emt 0:00:13]} Qc7 {[%emt 0:06:09] [#]} 10. h3 $146 {
[%emt 0:02:40] White is slightly better.} ({Predecessor:} 10. d5 cxd5 11. cxd5
Bxf3 12. Bxf3 Rfc8 13. Be2 a6 14. a4 Nc5 15. f3 Qb6 16. Qb1 {1-0 (25) Urkedal,
F (2470)-Medak,B (2399) Pula 2013}) 10... Bxf3 {[%emt 0:14:19]} 11. Bxf3 {
[%emt 0:00:08]} exd4 {[%emt 0:01:30]} 12. Bxd4 {[%emt 0:03:00]} Ne5 {[%emt 0:
00:00]} 13. Be2 {[%emt 0:00:23]} Nfd7 {[%emt 0:02:52]} 14. Qc2 {[%emt 0:02:32]}
Bf6 {[%emt 0:08:43][%cal Ye5f3]} 15. Rad1 {[%emt 0:01:24]} Rfe8 {[%emt 0:04:12]
} 16. Rfe1 {[%emt 0:05:49]} Rad8 {[%emt 0:02:21]} 17. Bf1 {[%emt 0:01:26]} (17.
Bxa7 $2 b6 18. Bxb6 (18. Qa4 $2 Nc5 $19) 18... Nxb6 $19) 17... h6 {[%emt 0:00:
00]} 18. Be3 {[%emt 0:06:06]} (18. Bxa7 $2 b6 19. Bxb6 (19. Qa4 $2 Nc5 $19)
19... Nxb6 $19) 18... Ng6 {[%emt 0:01:21]} 19. Ne2 {[%emt 0:04:05]} Nc5 {
[%emt 0:04:16]} 20. f3 {[%emt 0:08:25][%cal Yf2f3,Yf3f4]} Qe7 {[%emt 0:16:24]}
21. g3 {[%emt 0:07:11]} h5 {[%emt 0:14:39]} 22. Bg2 {[%emt 0:00:00]} b6 {
[%emt 0:03:52]} ({Better is} 22... a5 $14) 23. b4 $16 {[%emt 0:00:00]} Na6 {
[%emt 0:01:13]} 24. Qa4 {[%emt 0:01:10][%csl Ya6,Yc6]} Qb7 {[%emt 0:00:16]} 25.
f4 {[%emt 0:01:10]} Nc7 {[%emt 0:01:45]} 26. Bf2 {[%emt 0:00:00]} b5 {[%emt 0:
00:29]} 27. cxb5 {[%emt 0:02:02]} Nxb5 {[%emt 0:00:02]} 28. Qb3 {[%emt 0:01:22]
} Be7 {[%emt 0:00:59]} (28... h4 $16) 29. h4 $18 {[%emt 0:00:00]} Nc7 {[%emt 0:
00:29]} 30. Nd4 {[%emt 0:01:33]} d5 {[%emt 0:00:26]} (30... Bf6 $142 31. e5
dxe5) 31. exd5 {[%emt 0:00:55]} (31. Rc1 $142) 31... cxd5 {[%emt 0:00:01]} 32.
a3 {[%emt 0:01:41]} Bf6 {[%emt 0:00:55]} 33. Qa4 {[%emt 0:00:00]} Rxe1+ {
[%emt 0:00:24]} 34. Rxe1 {[%emt 0:00:01]} (34. Bxe1 Ne7 $14) 34... Ne7 {
[%emt 0:00:03] Inhibits Nc6.} 35. Nb3 {[%emt 0:01:09] 0x0.0019899bb3d1dp-1022s
more active pieces.} (35. Bh3 $16) 35... Nf5 {[%emt 0:00:00]} (35... Nb5 $1 $14
) 36. Nc5 {[%emt 0:02:00]} (36. Qxa7 $6 Qxa7 37. Bxa7 Ra8 $11) 36... Qb8 {
[%emt 0:00:19] [#]} (36... Qa8 $16) 37. Nd7 {[%emt 0:00:43]} Qb5 {[%emt 0:00:
31]} 38. Nxf6+ {[%emt 0:00:45]} gxf6 {[%emt 0:00:01]} 39. Qc2 {[%emt 0:00:43]}
Qd7 {[%emt 0:00:54]} 40. Rc1 {[%emt 0:02:45]} (40. Bxa7 $6 Nxg3 41. Kh2 Ne4 $18
) 40... Nb5 {[%emt 0:00:45]} 41. Bh3 {[%emt 0:32:28] This bishop pair is nice.}
Nbd6 {[%emt 0:05:43]} 42. Qd3 {[%emt 0:00:00]} Ne4 {[%emt 0:06:41]} 43. Re1 {
[%emt 0:00:00] Black must now prevent Rxe4.} Re8 {[%emt 0:03:14]} 44. Rd1 {
[%emt 0:00:00]} ({White should try} 44. Re2) 44... Qe6 {[%emt 0:08:18]} (44...
Nxf2 $2 45. Kxf2 d4 46. Qxf5 $18) 45. Bxa7 {[%emt 0:00:00] And now Re1 would
win.} (45. Qxd5 $2 Nxf2 46. Bxf5 Qe3 $19) 45... Nexg3 {[%emt 0:03:32]} 46. Bf2
{[%emt 0:01:16]} ({Resist} 46. Qxd5 Ne2+ 47. Kh2 Qxd5 48. Rxd5 Nxh4 $14) 46...
Ne4 {[%emt 0:03:53]} (46... Ne2+ $2 47. Kh2 $18) 47. Bd4 {[%emt 0:00:04]} ({
Worse is} 47. Qxd5 Nxf2 48. Bxf5 Qe2 49. Qg2+ (49. Rd2 Qe1+ 50. Kg2 Nd1 $19)
49... Kh8 $17) ({White should play} 47. Bc5 $16) 47... Ned6 $2 {[%emt 0:01:41]
[#]} (47... Kh7 $11 {and Black stays safe.}) 48. a4 {[%emt 0:01:00][%cal Ya3a4,
Ya4a5,Ya5a6,Ya6a7]} Qe4 {[%emt 0:00:00]} 49. Qxe4 {[%emt 0:00:44]} Rxe4 {
[%emt 0:00:02]} (49... dxe4 $142 50. Bxf6 Kh7) 50. Bc5 {[%emt 0:01:24]} d4 {
[%emt 0:00:53]} 51. a5 {[%emt 0:00:49]} Rxf4 {[%emt 0:00:37]} 52. a6 {[%emt 0:
00:18]} Nb5 {[%emt 0:00:30]} 53. Rf1 {[%emt 0:00:00]} Rxf1+ {[%emt 0:00:31]}
54. Bxf1 {[%emt 0:00:14]} Nc7 {[%emt 0:00:31]} 55. b5 {[%emt 0:00:33]} (55. a7
$142 Ne6 56. a8=Q+ Kg7 57. Qe4) 55... Ne3 {[%emt 0:00:30]} 56. a7 {[%emt 0:00:
28]} Na8 {[%emt 0:00:30]} 57. b6 {[%emt 0:00:00] Weighted Error Value: White=0.
21 (precise) /Black=0.72} 1-0

[Event "44th Chess Olympiad Women 2022"]
[Site "Chennai"]
[Date "2022.07.30"]
[Round "2.14"]
[White "Verbin, Valentina"]
[Black "Ordaz Valdes, Lisandra Teresa"]
[Result "1/2-1/2"]
[WhiteElo "2069"]
[BlackElo "2367"]
[Annotator "TA"]
[PlyCount "100"]
[EventDate "2022.??.??"]
[TimeControl "60"]

{[%evp 14,100,50,42,38,1,9,0,0,0,0,0,0,0,16,-6,0,0,0,0,0,-20,-25,-31,-12,-31,
-7,-43,-22,-8,-8,-44,-16,-34,0,-1,-9,0,45,28,39,22,83,77,79,80,100,93,162,154,
169,177,265,133,141,113,146,122,162,150,185,184,162,137,144,80,95,82,78,77,191,
102,103,53,60,60,47,0,0,0,0,0,0,0,0,0,0,0,0]} 1. e4 {[%emt 0:00:09]} e5 {
[%emt 0:00:07]} 2. Nf3 {[%emt 0:00:16]} Nc6 {[%emt 0:00:06]} 3. Bb5 {[%emt 0:
00:00]} g6 {[%emt 0:00:09]} 4. c3 {[%emt 0:00:30]} d6 {[%emt 0:00:31]} 5. d4 {
[%emt 0:01:44]} Bd7 {[%emt 0:00:06]} 6. O-O {[%emt 0:01:31]} Bg7 {[%emt 0:00:
00]} 7. Re1 {[%emt 0:04:21]} Nge7 {[%emt 0:01:49]} 8. Be3 {[%emt 0:06:54]} O-O
{[%emt 0:03:35][%cal Yc6d4] C60: Ruy Lopez: Unusual Black 3rd moves and 3...g6.
} 9. dxe5 {[%emt 0:06:09]} (9. d5 {seems wilder.} Nb8 10. Bxd7 Nxd7 11. c4)
9... Nxe5 {[%emt 0:03:04]} 10. Bxd7 {[%emt 0:03:27]} Nxf3+ {[%emt 0:00:30]} 11.
Qxf3 {[%emt 0:00:20]} Qxd7 {[%emt 0:00:02]} 12. Nd2 {[%emt 0:07:30][%cal Yb1d2,
Yd2c4,Yc4a3,Ya3b5] [#]} a5 $146 {[%emt 0:03:34]} ({Predecessor:} 12... Nc6 13.
Rad1 Ne5 14. Qe2 Qa4 15. f4 Nc6 16. a3 Rfe8 17. Qd3 Rad8 18. Bf2 a6 {1-0 (28)
Andersson,G (2200)-Hansson,S Gothenburg 1997}) 13. a4 {[%emt 0:13:09]} Nc6 {
[%emt 0:13:26][%cal Ye7c6,Yc6e5,Ye5d3]} 14. Nc4 {[%emt 0:08:41]} Qe6 {[%emt 0:
04:20]} 15. Na3 {[%emt 0:01:00]} Rfe8 {[%emt 0:11:36]} 16. Nb5 {[%emt 0:02:55]}
Rac8 {[%emt 0:03:39]} 17. Bd2 {[%emt 0:13:37]} Ne5 {[%emt 0:00:00]} 18. Qe2 {
[%emt 0:00:52]} Qc4 {[%emt 0:03:32]} 19. Bg5 {[%emt 0:10:03][%cal Yd2g5,Yg5h4,
Yh4g3,Yg3d6]} h6 {[%emt 0:02:09]} 20. Bh4 {[%emt 0:00:00]} Qxe2 {[%emt 0:07:37]
} 21. Rxe2 {[%emt 0:00:03]} f5 {[%emt 0:00:06] Hoping for ...g5.} 22. f3 {
[%emt 0:06:15]} Nd3 {[%emt 0:03:11]} 23. Rd1 {[%emt 0:03:40]} Nf4 {[%emt 0:20:
50]} 24. Ree1 {[%emt 0:00:25]} fxe4 {[%emt 0:00:00]} 25. Bg3 {[%emt 0:02:55]}
Nh5 {[%emt 0:01:28] [#]} 26. Bxd6 $1 {[%emt 0:00:00]} exf3 {[%emt 0:04:19]} 27.
Nxc7 {[%emt 0:02:03]} (27. Bxc7 $5 {[%cal Rg2f3]} Rxe1+ 28. Rxe1 $14) 27... Re2
{[%emt 0:04:37] [#]} (27... Rxe1+ $1 $11 {remains equal.} 28. Rxe1 fxg2) 28.
Rxe2 $1 $16 {[%emt 0:01:12]} fxe2 {[%emt 0:00:00]} 29. Re1 {[%emt 0:00:04]} Rd8
{[%emt 0:00:25]} 30. Nb5 {[%emt 0:00:44]} Re8 {[%emt 0:01:31]} (30... Bf8 $16
31. Bxf8 Kxf8) 31. Kf2 $18 {[%emt 0:00:20]} Re4 {[%emt 0:03:21]} 32. b3 {
[%emt 0:01:04]} Nf4 {[%emt 0:00:04]} (32... Kf7 {was worth a try.} 33. Rxe2 Nf6
) 33. Bxf4 {[%emt 0:00:15]} (33. Kf3 $18 Nd3 34. Rxe2 Rxe2 35. Kxe2) 33...
Rxf4+ $16 {[%emt 0:00:01]} 34. Kxe2 $18 {[%emt 0:00:00] Endgame KRB-KRN} Rf7 {
[%emt 0:00:06]} 35. Rd1 {[%emt 0:00:53]} Be5 {[%emt 0:00:11]} 36. g3 {[%emt 0:
00:26]} h5 {[%emt 0:00:24]} 37. Rd5 {[%emt 0:00:16]} Re7 {[%emt 0:00:04]} 38.
Kf3 {[%emt 0:00:22]} Kg7 {[%emt 0:00:00]} 39. Rd8 {[%emt 0:01:10]} (39. Nd4
$142) 39... g5 $16 {[%emt 0:00:47]} 40. h3 {[%emt 0:00:24] White is more
active.} Rf7+ {[%emt 0:00:51]} 41. Kg2 {[%emt 0:01:55]} h4 {[%emt 0:00:30] [#]}
(41... Re7 $16) 42. gxh4 {[%emt 0:00:00]} ({White should play} 42. Nd6 $1 $18 {
[%cal Rd6f7]} Rf8 43. Rxf8 (43. Nxb7 Rxd8 44. Nxd8 Bxc3 $18) 43... Kxf8 44.
Nxb7) 42... gxh4 {[%emt 0:00:02]} 43. Nd6 {[%emt 0:08:24]} (43. Nd4 $16) 43...
Rf4 $1 $14 {[%emt 0:05:23]} 44. Nxb7 {[%emt 0:07:34] aiming for Rd3.} Bxc3 {
[%emt 0:00:11]} 45. Rd5 {[%emt 0:00:14]} (45. Nc5 $14 {might be stronger.} Rf5
46. Ne4) 45... Bd4 $11 {[%emt 0:08:15] The position is equal.} 46. Nxa5 {
[%emt 0:02:20]} Rf2+ {[%emt 0:00:31]} 47. Kh1 {[%emt 0:00:06]} Rf1+ {[%emt 0:
00:14]} 48. Kg2 {[%emt 0:00:33]} Rf2+ {[%emt 0:00:00]} 49. Kh1 {[%emt 0:00:05]}
Rf1+ {[%emt 0:00:05]} 50. Kg2 {[%emt 0:02:15]} Rf2+ {[%emt 0:00:05] White
really could win this. Weighted Error Value: White=0.16 (very precise) /
Black=0.18 (very precise)} 1/2-1/2